bitfinex/quotes_SOLUSD_20220114
["timestamp","ask_amount","ask_price","bid_price","bid_amount"]
[1642196457496,3.87384088,147.38,147.29,28.8252]
[1642196457898,4.13384088,147.38,147.29,22.8252]
[1642196458099,4.13384088,147.38,147.29,28.8252]
[1642196458299,0.26,147.38,147.29,22.8252]
[1642196458500,22.8312,147.39,147.29,28.8252]
[1642196458700,22.8312,147.39,147.29,20.1112]
[1642196458701,23.0912,147.39,147.29,20.1112]
[1642196458900,23.0912,147.39,147.29,26.1112]
[1642196459101,22.8312,147.39,147.29,26.1112]
[1642196459501,22.8312,147.39,147.29,20.1112]
[1642196460201,90.8012,147.39,147.29,20.1112]
[1642196460402,100.9832,147.39,147.29,9.93]
[1642196460603,100.9832,147.39,147.29,0.25]
[1642196460801,106.9832,147.39,147.29,0.25]
[1642196461101,2.714,147.38,147.27,10.4322]
[1642196461343,6.58830963,147.38,147.27,10.4322]
[1642196461528,91.0066,147.37,147.27,10.4322]
[1642196461727,2.715,147.36,147.27,10.4322]
[1642196462128,2.965,147.36,147.27,10.4322]
[1642196463833,23.0366,147.37,147.28,2.715]
[1642196464030,23.0366,147.37,147.29,10.1813]
[1642196464430,23.0366,147.37,147.29,10.4313]
[1642196465031,23.5466,147.37,147.29,10.4313]
[1642196466336,23.5466,147.37,147.29,0.25]
[1642196466534,2.714,147.36,147.28,0.25]
[1642196466936,2.714,147.36,147.27,2.964]
[1642196467136,23.2966,147.37,147.27,2.964]
[1642196468338,23.2966,147.37,147.28,10.1821]
[1642196468539,23.5466,147.37,147.28,10.4321]
[1642196469438,23.2966,147.37,147.28,10.4321]
[1642196469637,23.2966,147.37,147.28,27.1931]
[1642196470041,23.5466,147.37,147.28,33.1931]
[1642196471140,23.5466,147.37,147.28,26.1121]
[1642196474340,23.5466,147.37,147.28,25.8621]
[1642196475740,23.5466,147.37,147.28,26.1121]
[1642196476842,23.5466,147.37,147.28,15.93]
[1642196478949,101.6998,147.37,147.28,0.25]
[1642196479346,101.6998,147.37,147.27,2.964]
[1642196479547,107.6998,147.37,147.27,2.964]
[1642196479947,101.6998,147.37,147.27,2.964]
[1642196480445,14.05877611,147.36,147.27,2.964]
[1642196480847,14.30877611,147.36,147.27,2.964]
[1642196481146,82.27877611,147.36,147.27,2.964]
[1642196481345,78.4039,147.36,147.27,2.964]
[1642196481848,78.4039,147.36,147.27,0.25]
[1642196482048,78.4039,147.36,147.26,8.965]
[1642196482248,78.4039,147.36,147.26,2.965]
[1642196482448,24.4604,147.35,147.26,8.965]
[1642196483249,92.4304,147.35,147.26,2.965]
[1642196483649,102.615,147.35,147.26,2.965]
[1642196483848,102.865,147.35,147.26,2.965]
[1642196484449,103.125,147.35,147.26,2.965]
[1642196484652,109.71484147,147.35,147.26,0.25]
[1642196485050,109.71484147,147.35,147.23,26.1151]
[1642196485051,115.71484147,147.35,147.23,26.1151]
[1642196485350,115.71484147,147.35,147.23,20.1151]
[1642196485550,7.73604988,147.34,147.23,9.93]
[1642196485750,10.1873,147.31,147.23,9.68]
[1642196485950,2.716,147.3,147.23,9.68]
[1642196486349,8.966,147.3,147.23,9.68]
[1642196486751,0.25,147.3,147.23,9.68]
[1642196486952,2.966,147.32,147.23,9.68]
[1642196487253,6.25,147.32,147.23,9.68]
[1642196487851,0.25,147.32,147.23,9.68]
[1642196488051,6.51,147.32,147.23,9.93]
[1642196488253,6.26,147.32,147.23,9.93]
[1642196488451,0.51,147.32,147.23,20.1154]
[1642196488652,6.51,147.32,147.23,20.1154]
[1642196488857,6.25,147.32,147.23,20.1154]
[1642196489051,6.51,147.32,147.23,20.1154]
[1642196489252,0.51,147.32,147.23,20.1154]
[1642196489457,27.6009,147.33,147.23,25.4864]
[1642196489753,24.8849,147.33,147.23,25.4864]
[1642196489952,24.6349,147.33,147.23,31.4864]
[1642196490554,1.92457955,147.31,147.23,31.4864]
[1642196493562,2.17457955,147.31,147.23,31.4864]
[1642196493961,2.17457955,147.31,147.23,15.93]
[1642196494269,2.17457955,147.31,147.23,9.93]
[1642196494861,25.62817955,147.31,147.23,9.93]
[1642196495087,25.37817955,147.31,147.23,9.93]
[1642196495260,1.92457955,147.3,147.23,9.93]
[1642196495761,1.92457955,147.3,147.24,1.70077588]
[1642196495963,1.92457955,147.3,147.24,16.84877588]
[1642196496165,1.92457955,147.3,147.25,10.367555]
[1642196496564,1.92457955,147.3,147.25,16.617555]
[1642196496765,1.92457955,147.3,147.25,6.25]
[1642196496967,1.92457955,147.32,147.25,10.4337]
[1642196497165,1.92457955,147.32,147.25,16.4337]
[1642196497868,24.58067955,147.33,147.25,26.1137]
[1642196498068,24.58067955,147.33,147.26,2.715]
[1642196498268,24.58067955,147.33,147.26,12.8979]
[1642196498468,24.58067955,147.33,147.26,19.1479]
[1642196498667,24.58067955,147.33,147.26,13.1479]
[1642196498867,24.84067955,147.33,147.26,13.1479]
[1642196500269,24.84067955,147.33,147.26,44.74136032]
[1642196500468,24.84067955,147.33,147.26,52.62736032]
[1642196500669,22.9161,147.33,147.26,52.62736032]
[1642196500868,21.9161,147.33,147.26,52.62736032]
[1642196501271,0.26,147.33,147.26,58.62736032]
[1642196501469,1.92457955,147.34,147.26,58.88736032]
[1642196501673,1.92457955,147.34,147.27,9.68]
[1642196501871,1.92457955,147.34,147.29,10.1808]
[1642196502171,1.92457955,147.34,147.29,10.4308]
[1642196502797,1.92457955,147.35,147.29,10.4308]
[1642196503197,2.18457955,147.35,147.29,10.4308]
[1642196504900,2.18457955,147.35,147.29,0.25]
[1642196505096,27.48627955,147.35,147.27,9.93]
[1642196505297,1.92457955,147.34,147.27,6.0]
[1642196505496,2.715,147.33,147.26,2.715]
[1642196505696,2.715,147.33,147.26,2.965]
[1642196506300,1.92457955,147.32,147.26,2.965]
[1642196506499,2.18457955,147.32,147.26,2.965]
[1642196508003,2.18457955,147.32,147.26,0.25]
[1642196508403,2.18457955,147.32,147.25,10.4335]
[1642196509004,1.92457955,147.31,147.25,10.4335]
[1642196511208,1.92457955,147.31,147.25,16.4335]
[1642196511608,1.92457955,147.32,147.25,16.4335]
[1642196512008,2.18457955,147.32,147.25,16.4335]
[1642196512512,0.26,147.32,147.25,16.4335]
[1642196513111,25.36637955,147.33,147.25,16.4335]
[1642196513312,2.18457955,147.33,147.25,26.3735]
[1642196514111,0.26,147.33,147.25,26.3735]
[1642196514312,0.26,147.33,147.26,2.715]
[1642196514611,1.92457955,147.34,147.28,10.1821]
[1642196515015,1.92457955,147.34,147.28,10.4321]
[1642196516510,1.92457955,147.34,147.28,0.25]
[1642196516710,24.97617955,147.34,147.28,0.25]
[1642196516912,24.97617955,147.34,147.26,18.8978]
[1642196516913,1.92457955,147.33,147.26,16.4328]
[1642196517113,1.92457955,147.33,147.26,26.1128]
[1642196518014,2.18457955,147.33,147.26,26.1128]
[1642196518217,2.18457955,147.33,147.26,15.93]
[1642196518416,1.92457955,147.32,147.26,15.93]
[1642196519617,1.92457955,147.32,147.26,9.93]
[1642196522050,2.18457955,147.32,147.26,9.93]
[1642196522854,2.18457955,147.32,147.26,9.68]
[1642196524755,2.18457955,147.32,147.26,9.93]
[1642196528865,2.18457955,147.32,147.26,20.1135]
[1642196533366,2.18457955,147.32,147.26,26.1135]
[1642196533767,2.18457955,147.32,147.26,15.93]
[1642196535069,2.43457955,147.32,147.26,15.93]
[1642196535268,1.92457955,147.31,147.26,15.93]
[1642196535970,2.18457955,147.31,147.26,15.93]
[1642196537373,2.18457955,147.31,147.26,26.1135]
[1642196538575,0.26,147.31,147.26,26.1135]
[1642196538974,2.18457955,147.32,147.26,26.1135]
[1642196540677,2.18457955,147.32,147.26,33.9415]
[1642196541482,2.18457955,147.32,147.27,27.26198363]
[1642196541683,2.18457955,147.32,147.28,10.1815]
[1642196541981,0.26,147.32,147.28,10.4315]
[1642196542482,1.92457955,147.33,147.28,10.4315]
[1642196542883,1.92457955,147.33,147.28,10.1815]
[1642196543083,24.97617955,147.34,147.28,10.1815]
[1642196543483,25.22617955,147.34,147.28,10.1815]
[1642196543888,25.48617955,147.34,147.28,10.1815]
[1642196544083,1.92457955,147.33,147.28,10.1815]
[1642196544284,1.92457955,147.33,147.28,10.4315]
[1642196544784,7.92457955,147.33,147.28,10.4315]
[1642196545085,1.42457955,147.33,147.28,10.4315]
[1642196549511,1.68457955,147.33,147.28,10.4315]
[1642196550012,1.93457955,147.33,147.28,0.25]
[1642196550413,4.64957955,147.33,147.26,10.4329]
[1642196550914,4.64957955,147.33,147.26,0.25]
[1642196551112,22.7565,147.32,147.24,12.8992]
[1642196551313,2.715,147.31,147.24,2.715]
[1642196551512,10.66577588,147.31,147.24,2.715]
[1642196552713,10.66577588,147.31,147.24,0.25]
[1642196552913,22.6759,147.3,147.22,16.4356]
[1642196553112,2.716,147.29,147.22,16.4356]
[1642196553314,8.716,147.29,147.22,10.4356]
[1642196553518,8.966,147.29,147.22,10.4356]
[1642196555520,20.85427588,147.29,147.22,0.25]
[1642196555731,22.8608,147.28,147.22,0.25]
[1642196555922,22.8608,147.28,147.19,2.966]
[1642196556123,29.1108,147.28,147.19,2.966]
[1642196556723,96.5808,147.28,147.19,2.966]
[1642196557227,2.716,147.27,147.19,2.966]
[1642196557428,10.1895,147.27,147.19,2.966]
[1642196557631,16.4395,147.27,147.19,2.966]
[1642196558632,22.7875,147.26,147.19,0.25]
[1642196558858,32.9775,147.26,147.19,0.25]
[1642196559028,16.19,147.26,147.17,2.966]
[1642196559230,16.19,147.26,147.17,19.1557]
[1642196559429,6.0,147.26,147.17,19.4157]
[1642196559830,0.25,147.27,147.17,19.4157]
[1642196560029,8.966,147.28,147.17,19.4157]
[1642196560229,10.189,147.27,147.17,19.4157]
[1642196560632,16.439,147.27,147.17,19.4157]
[1642196563034,16.439,147.27,147.17,19.1557]
[1642196564536,16.699,147.27,147.17,19.1557]
[1642196565038,16.699,147.27,147.17,19.4157]
[1642196565643,16.699,147.27,147.17,19.1557]
[1642196565939,16.699,147.27,147.17,19.4157]
[1642196567039,6.51,147.27,147.17,19.4157]
[1642196567244,6.51,147.27,147.17,19.1557]
[1642196567438,6.51,147.27,147.18,9.68]
[1642196567642,6.51,147.27,147.2,10.1874]
[1642196568045,6.51,147.27,147.2,10.4374]
[1642196568243,0.51,147.27,147.2,10.4374]
[1642196568443,6.0,147.27,147.2,10.4374]
[1642196568843,6.25,147.27,147.2,10.4374]
[1642196569046,6.25,147.27,147.2,10.6974]
[1642196569344,6.25,147.27,147.2,17.7134]
[1642196569643,6.25,147.27,147.2,17.9734]
[1642196569844,8.716,147.28,147.2,23.9734]
[1642196570845,8.716,147.28,147.2,23.7134]
[1642196571046,8.966,147.28,147.2,23.7134]
[1642196571547,24.3948,147.27,147.2,23.7134]
[1642196571745,2.716,147.26,147.2,17.7134]
[1642196571948,2.716,147.26,147.2,16.4374]
[1642196572245,2.976,147.26,147.2,6.25]
[1642196572446,2.976,147.26,147.2,0.25]
[1642196572653,2.976,147.26,147.18,19.4145]
[1642196572847,0.26,147.26,147.18,19.4145]
[1642196573046,30.6448,147.27,147.18,19.4145]
[1642196573249,30.9048,147.27,147.18,19.4145]
[1642196575277,30.9048,147.27,147.18,19.1545]
[1642196575476,2.716,147.26,147.18,16.4385]
[1642196575880,2.966,147.26,147.18,16.4385]
[1642196576681,8.717,147.27,147.18,16.4385]
[1642196576878,8.967,147.27,147.18,16.6985]
[1642196577081,8.967,147.27,147.18,16.4385]
[1642196578181,24.2995,147.26,147.18,16.4385]
[1642196578582,24.5495,147.26,147.18,16.4385]
[1642196578983,8.717,147.27,147.18,16.6985]
[1642196579185,6.0,147.27,147.19,2.716]
[1642196579382,6.0,147.27,147.21,10.1868]
[1642196579584,3.87484147,147.3,147.22,2.716]
[1642196580083,3.87484147,147.3,147.22,8.966]
[1642196580282,1.22297942,147.31,147.22,9.226]
[1642196580486,1.47297942,147.31,147.22,9.226]
[1642196581087,1.73297942,147.31,147.22,9.226]
[1642196581483,10.1868,147.3,147.22,19.1521]
[1642196581886,23.7544,147.29,147.22,19.4121]
[1642196584087,24.0144,147.29,147.22,19.4121]
[1642196585589,24.0144,147.29,147.22,29.0921]
[1642196590394,2.716,147.32,147.22,28.8321]
[1642196590593,2.716,147.32,147.22,29.0921]
[1642196591194,2.716,147.32,147.22,35.6231]
[1642196591593,6.59084147,147.34,147.22,35.6231]
[1642196591795,24.4425,147.33,147.22,35.6231]
[1642196592096,2.716,147.32,147.22,35.6231]
[1642196593496,2.716,147.32,147.22,32.9071]
[1642196593697,2.716,147.32,147.22,26.3761]
[1642196594097,2.976,147.32,147.22,26.3761]
[1642196594496,0.26,147.32,147.23,2.716]
[1642196594698,0.26,147.32,147.25,10.1837]
[1642196594895,27.1585,147.33,147.25,10.1837]
[1642196594896,27.4085,147.33,147.25,10.1837]
[1642196595094,27.6685,147.33,147.25,10.4337]
[1642196596999,27.4185,147.33,147.25,10.4337]
[1642196597598,37.8532,147.33,147.25,10.4337]
[1642196597797,37.8532,147.33,147.25,0.25]
[1642196597997,37.8532,147.33,147.23,48.8269]
[1642196599702,37.8532,147.33,147.23,26.115]
[1642196603727,35.1372,147.33,147.23,26.115]
[1642196603927,35.1372,147.33,147.23,25.865]
[1642196605032,10.1861,147.31,147.22,27.0628]
[1642196605227,26.8817,147.3,147.22,30.5978]
[1642196605629,24.1657,147.3,147.22,30.5978]
[1642196606330,24.1657,147.3,147.22,40.784]
[1642196607929,24.6757,147.3,147.22,40.784]
[1642196608129,24.6757,147.3,147.22,16.4362]
[1642196608628,24.4257,147.3,147.22,16.4362]
[1642196609031,24.6757,147.3,147.22,19.1522]
[1642196609431,24.4257,147.3,147.22,19.1522]
[1642196609934,24.4257,147.3,147.22,16.4362]
[1642196610930,24.6757,147.3,147.22,16.4362]
[1642196611134,27.3917,147.3,147.22,16.4362]
[1642196611730,27.1417,147.3,147.22,16.4362]
[1642196612133,24.4257,147.3,147.22,16.4362]
[1642196612735,24.4257,147.3,147.22,16.1862]
[1642196612935,24.6757,147.3,147.22,16.1862]
[1642196613335,34.8627,147.3,147.22,6.0]
[1642196613533,34.8627,147.3,147.21,29.7179]
[1642196613734,2.716,147.29,147.21,39.3979]
[1642196613935,23.2064,147.28,147.21,39.6479]
[1642196614334,23.2064,147.28,147.21,49.8347]
[1642196614734,23.4564,147.28,147.21,49.8347]
[1642196615736,2.716,147.29,147.21,26.1168]
[1642196615934,2.716,147.29,147.21,26.3768]
[1642196616135,26.8258,147.31,147.21,26.1168]
[1642196616336,26.8258,147.31,147.21,28.8328]
[1642196616537,27.0758,147.31,147.21,28.8328]
[1642196616937,27.3358,147.31,147.21,29.0928]
[1642196617339,37.5222,147.31,147.21,29.0928]
[1642196617537,37.5222,147.31,147.21,26.3768]
[1642196624449,37.2722,147.31,147.21,26.3768]
[1642196625947,37.5222,147.31,147.21,26.3768]
[1642196627755,34.8062,147.31,147.21,26.3768]
[1642196627955,34.5462,147.31,147.21,26.3768]
[1642196628264,24.1098,147.31,147.21,26.3768]
[1642196629554,24.3598,147.31,147.21,26.3768]
[1642196629952,24.3598,147.31,147.21,29.0928]
[1642196631555,24.6198,147.31,147.21,29.0928]
[1642196632657,34.8061,147.31,147.21,28.8328]
[1642196633058,34.8061,147.31,147.21,22.5828]
[1642196633259,40.8061,147.31,147.21,2.716]
[1642196633457,40.8061,147.31,147.18,13.55136629]
[1642196633458,2.716,147.3,147.18,3.87136629]
[1642196633661,10.1898,147.26,147.18,3.87136629]
[1642196634091,10.4398,147.26,147.16,13.55136629]
[1642196634291,23.5315,147.25,147.16,13.55136629]
[1642196634491,23.5315,147.25,147.16,19.80136629]
[1642196634892,23.5315,147.25,147.16,20.06136629]
[1642196635093,23.5315,147.25,147.16,16.19]
[1642196635293,23.7915,147.25,147.16,16.19]
[1642196635492,23.7915,147.25,147.17,10.1892]
[1642196635892,23.7915,147.25,147.17,16.6992]
[1642196637094,23.7915,147.25,147.17,19.4162]
[1642196640499,24.0415,147.25,147.17,16.6992]
[1642196640697,24.0415,147.25,147.17,16.1992]
[1642196641198,24.0415,147.25,147.17,15.9492]
[1642196641601,26.7585,147.25,147.17,15.9492]
[1642196642600,26.7585,147.25,147.17,16.1992]
[1642196643903,24.0415,147.25,147.17,16.1992]
[1642196644400,24.0415,147.25,147.17,15.9392]
[1642196645000,24.0415,147.25,147.17,16.1992]
[1642196645803,23.7915,147.25,147.17,16.1992]
[1642196646000,23.7915,147.25,147.17,18.9162]
[1642196646902,26.5085,147.25,147.17,16.1992]
[1642196647103,26.7585,147.25,147.17,15.6892]
[1642196648503,26.7585,147.25,147.17,16.1992]
[1642196649601,26.7585,147.25,147.17,15.9392]
[1642196649802,36.9488,147.25,147.17,0.25]
[1642196650003,36.9488,147.25,147.15,6.25]
[1642196650406,36.9488,147.25,147.15,0.25]
[1642196650604,36.9488,147.25,147.15,6.0]
[1642196651208,36.9488,147.25,147.13,35.56666629]
[1642196651406,36.9488,147.25,147.13,42.1372]
[1642196652008,36.9488,147.25,147.13,42.3972]
[1642196652206,36.9488,147.25,147.13,42.6472]
[1642196652507,36.4488,147.25,147.13,42.6472]
[1642196655108,35.64465997,147.25,147.13,42.6472]
[1642196655907,35.64465997,147.25,147.13,19.1589]
[1642196656107,41.64465997,147.25,147.13,19.1589]
[1642196657311,41.64465997,147.25,147.13,19.4189]
[1642196658814,41.39465997,147.25,147.13,19.4189]
[1642196660451,41.64465997,147.25,147.13,19.4189]
[1642196661553,109.61465997,147.25,147.13,18.9089]
[1642196661753,109.61465997,147.25,147.13,16.1919]
[1642196662853,41.64465997,147.25,147.13,16.4419]
[1642196663555,35.64465997,147.25,147.13,16.4419]
[1642196664353,35.64465997,147.25,147.14,23.0211]
[1642196664554,35.64465997,147.25,147.14,23.2711]
[1642196665554,35.64465997,147.25,147.14,33.4629]
[1642196665755,35.13465997,147.25,147.14,40.1949]
[1642196665958,34.28116494,147.25,147.14,58.8519]
[1642196667156,22.22735997,147.25,147.14,60.5245299]
[1642196667360,22.22735997,147.25,147.14,60.7845299]
[1642196668356,22.47735997,147.25,147.14,60.7845299]
[1642196669458,22.73735997,147.25,147.14,60.7845299]
[1642196671260,22.48735997,147.25,147.14,60.7845299]
[1642196672364,22.48735997,147.25,147.14,128.7545299]
[1642196673061,22.48735997,147.25,147.14,60.7845299]
[1642196673462,24.35086494,147.25,147.16,1.9326299]
[1642196673663,24.35086494,147.25,147.17,10.1895]
[1642196674065,24.35086494,147.25,147.17,16.4395]
[1642196674565,22.48735997,147.25,147.17,18.3721299]
[1642196675169,24.35086494,147.25,147.17,18.3721299]
[1642196675367,24.35086494,147.25,147.17,16.4395]
[1642196677773,24.60086494,147.25,147.17,16.4395]
[1642196678371,24.35086494,147.25,147.17,16.4395]
[1642196679702,24.35086494,147.25,147.17,18.3721299]
[1642196680503,22.48735997,147.25,147.17,18.3721299]
[1642196681305,0.26,147.25,147.17,18.3721299]
[1642196681505,1.86350497,147.26,147.19,10.1877]
[1642196681707,1.86350497,147.26,147.19,34.99417126]
[1642196681903,1.86350497,147.26,147.19,16.4377]
[1642196682305,26.36110497,147.27,147.19,16.4377]
[1642196682504,26.61110497,147.27,147.19,16.4377]
[1642196682906,22.7466,147.26,147.19,16.4377]
[1642196684107,25.4626,147.26,147.19,16.4377]
[1642196684906,25.4626,147.26,147.19,16.6977]
[1642196685309,23.0066,147.26,147.19,16.6977]
[1642196686309,23.0066,147.26,147.19,18.6303299]
[1642196687112,23.0066,147.26,147.19,16.6977]
[1642196688514,23.2566,147.26,147.19,16.6977]
[1642196695527,23.2566,147.26,147.19,16.4477]
[1642196696928,23.2566,147.26,147.19,16.6977]
[1642196697651,23.2566,147.26,147.19,16.4377]
[1642196698654,23.2566,147.26,147.19,6.25]
[1642196698857,23.2566,147.26,147.19,0.25]
[1642196699055,25.12010497,147.26,147.18,32.3753299]
[1642196699856,25.12010497,147.26,147.18,30.4427]
[1642196700256,25.12010497,147.26,147.18,30.7027]
[1642196700457,25.12010497,147.26,147.18,40.6316]
[1642196700857,25.12010497,147.26,147.18,30.4427]
[1642196701059,25.12010497,147.26,147.18,30.1927]
[1642196701256,25.12010497,147.26,147.18,6.0]
[1642196701460,2.717,147.25,147.17,7.9326299]
[1642196701656,23.4959,147.24,147.17,2.1826299]
[1642196701858,2.717,147.23,147.17,8.1826299]
[1642196702057,2.967,147.23,147.17,1.9326299]
[1642196702658,23.8806,147.22,147.15,1.9326299]
[1642196703058,24.1306,147.22,147.15,7.9326299]
[1642196703859,24.1406,147.22,147.15,8.1826299]
[1642196704062,24.1406,147.22,147.15,18.3736299]
[1642196706464,30.1406,147.22,147.15,18.3736299]
[1642196706863,24.1406,147.22,147.15,18.3736299]
[1642196707065,30.1406,147.22,147.15,18.3736299]
[1642196709169,24.1406,147.22,147.15,18.3736299]
[1642196709367,30.1406,147.22,147.15,18.3736299]
[1642196709867,29.8806,147.22,147.15,18.3736299]
[1642196711971,30.1406,147.22,147.15,18.3736299]
[1642196712771,29.8806,147.22,147.15,18.3736299]
[1642196713073,29.8806,147.22,147.15,18.6336299]
[1642196713472,29.8806,147.22,147.15,18.3736299]
[1642196714477,30.1406,147.22,147.15,18.3736299]
[1642196715077,30.3906,147.22,147.15,8.1826299]
[1642196716507,30.3906,147.22,147.15,7.9326299]
[1642196716707,30.3906,147.22,147.15,1.9326299]
[1642196716907,40.5836,147.22,147.15,2.1826299]
[1642196717507,2.717,147.21,147.15,2.1826299]
[1642196717808,23.8816,147.2,147.15,0.25]
[1642196718010,24.1316,147.2,147.13,2.1826299]
[1642196718406,24.1316,147.2,147.13,1.9326299]
[1642196718907,23.8816,147.2,147.12,12.1257299]
[1642196719109,23.8816,147.2,147.12,20.8437299]
[1642196719610,23.8816,147.2,147.12,21.1037299]
[1642196719808,23.8816,147.2,147.13,1.9326299]
[1642196720008,24.1416,147.2,147.14,2.718]
[1642196720514,24.1416,147.2,147.14,2.968]
[1642196721009,24.1416,147.2,147.14,4.9006299]
[1642196721211,24.1416,147.2,147.14,2.1826299]
[1642196722214,24.1416,147.2,147.14,10.8743299]
[1642196723214,24.1416,147.2,147.14,0.6826299]
[1642196724015,24.3916,147.2,147.14,0.6826299]
[1642196724412,2.717,147.19,147.14,0.6826299]
[1642196724817,2.967,147.19,147.14,0.6826299]
[1642196725214,23.4093,147.18,147.14,0.6826299]
[1642196725415,23.4093,147.18,147.1,25.8741]
[1642196725615,23.4093,147.18,147.1,16.1941]
[1642196726016,23.4093,147.18,147.1,16.4441]
[1642196726315,23.4093,147.18,147.1,48.38954076]
[1642196726515,23.6593,147.18,147.1,48.38954076]
[1642196727116,23.4093,147.18,147.1,48.38954076]
[1642196728216,23.4093,147.18,147.1,16.4441]
[1642196729117,23.4093,147.18,147.1,6.25]
[1642196729319,23.6593,147.18,147.1,6.25]
[1642196729518,23.9193,147.18,147.1,6.25]
[1642196729917,2.718,147.17,147.1,6.25]
[1642196730321,2.718,147.17,147.1,0.25]
[1642196730518,2.718,147.17,147.09,26.5882]
[1642196730719,23.9193,147.18,147.09,26.5882]
[1642196731318,23.9193,147.18,147.09,16.1952]
[1642196731519,26.6373,147.18,147.09,6.0]
[1642196731718,26.6373,147.18,147.08,25.3205]
[1642196731920,26.6373,147.18,147.08,22.6025]
[1642196732419,26.6373,147.18,147.07,93.7]
[1642196732823,67.97,147.17,147.07,0.25]
[1642196733019,10.1979,147.15,147.05,43.8717]
[1642196733220,23.7414,147.14,147.05,43.8717]
[1642196733620,23.9914,147.14,147.05,43.8717]
[1642196734823,34.1898,147.14,147.05,43.8717]
[1642196736221,23.7414,147.14,147.05,43.8717]
[1642196736624,23.9914,147.14,147.05,43.8717]
[1642196736824,23.7414,147.14,147.05,43.8717]
[1642196737025,23.9914,147.14,147.05,43.8717]
[1642196737424,24.2514,147.14,147.05,2.968]
[1642196738026,2.719,147.13,147.05,0.25]
[1642196738224,24.0913,147.12,147.05,0.25]
[1642196738423,24.0913,147.12,147.04,9.93]
[1642196738624,24.3413,147.12,147.04,9.93]
[1642196738824,24.0913,147.12,147.04,9.93]
[1642196739025,24.0913,147.12,147.04,9.68]
[1642196739725,24.3413,147.12,147.04,9.68]
[1642196740328,24.3413,147.12,147.04,19.8786]
[1642196740529,24.0913,147.12,147.04,26.1286]
[1642196742229,24.3413,147.12,147.04,26.1286]
[1642196742430,24.3413,147.12,147.05,3.87897523]
[1642196742728,24.0913,147.12,147.05,4.12897523]
[1642196742932,24.0913,147.12,147.05,10.12897523]
[1642196743133,24.0913,147.12,147.05,6.25]
[1642196744029,24.3513,147.12,147.05,6.25]
[1642196744230,24.3513,147.12,147.05,0.25]
[1642196744432,24.3513,147.12,147.05,6.25]
[1642196745032,24.3513,147.12,147.05,16.4481]
[1642196746330,24.3513,147.12,147.05,6.25]
[1642196746530,24.6013,147.12,147.05,0.25]
[1642196746729,24.6013,147.12,147.04,6.0]
[1642196746730,34.8013,147.12,147.04,6.0]
[1642196746931,2.719,147.11,147.04,0.25]
[1642196747130,24.4793,147.1,147.04,0.25]
[1642196747932,24.7293,147.1,147.03,0.25]
[1642196748332,24.4793,147.1,147.02,30.1235]
[1642196748535,24.7293,147.1,147.02,30.1235]
[1642196748935,24.4793,147.1,147.02,30.1235]
[1642196749834,24.4793,147.1,147.02,24.1235]
[1642196750170,24.4793,147.1,147.02,34.3236]
[1642196750737,24.4793,147.1,147.02,37.0426]
[1642196750934,24.7393,147.1,147.02,37.0426]
[1642196751335,24.7393,147.1,147.02,34.3236]
[1642196751737,24.7393,147.1,147.02,40.5836]
[1642196752137,24.7393,147.1,147.02,40.3236]
[1642196752439,24.7393,147.1,147.03,2.719]
[1642196752638,24.7393,147.1,147.02,37.0426]
[1642196753039,24.7393,147.1,147.02,43.0426]
[1642196753242,24.7393,147.1,147.02,52.7226]
[1642196753442,0.26,147.1,147.02,52.9826]